bitfinex/quotes_SOLUSD_20250718
["timestamp","ask_amount","ask_price","bid_price","bid_amount"]
[1752821808313,50.31222339,183.57,183.52,5.33582871]
[1752821808314,28.08,183.57,183.55,0.67]
[1752821808499,44.86468397,183.57,183.56,0.67]
[1752821810003,50.31222584,183.57,183.54,0.67]
[1752821811310,44.86468397,183.57,183.54,0.67]
[1752821811618,44.86468397,183.57,183.55,0.7]
[1752821812916,5.33582871,183.56,183.53,0.7]
[1752821813125,50.89051268,183.55,183.5,0.7]
[1752821813321,33.39582871,183.54,183.5,0.7]
[1752821813525,16.78468397,183.53,183.5,0.7]
[1752821813826,28.06,183.52,183.5,0.7]
[1752821814927,28.06,183.52,183.51,0.7]
[1752821816510,5.33582871,183.55,183.51,0.7]
[1752821816821,28.06,183.54,183.52,0.7]
[1752821817925,33.39582871,183.54,183.5,0.7]
[1752821818103,33.39582871,183.54,183.51,0.7]
[1752821818447,5.33582871,183.53,183.49,0.7]
[1752821818637,28.06,183.52,183.48,10.78595483]
[1752821818939,28.06,183.52,183.49,0.7]
[1752821819316,28.06,183.52,183.5,0.7]
[1752821819901,38.55490186,183.52,183.48,0.7]
[1752821820107,32.50907315,183.52,183.47,5.33582871]
[1752821820335,32.50907315,183.52,183.49,0.7]
[1752821820518,16.78468397,183.51,183.47,0.7]
[1752821821032,22.12051268,183.51,183.47,0.7]
[1752821821225,28.77,183.5,183.45,6.03582871]
[1752821821530,28.06,183.5,183.46,0.7]
[1752821821708,28.06,183.5,183.46,6.15074761]
[1752821822030,28.06,183.5,183.47,0.7]
[1752821822332,28.06,183.5,183.48,0.7]
[1752821822735,33.5096222,183.5,183.46,0.7]
[1752821823230,28.06,183.5,183.47,0.7]
[1752821823620,33.39582871,183.5,183.47,0.7]
[1752821823931,33.39582871,183.5,183.48,0.03]
[1752821824228,28.06,183.5,183.48,0.03]
[1752821824426,28.06,183.5,183.49,0.7]
[1752821825537,28.06,183.51,183.49,0.7]
[1752821825742,5.33582871,183.53,183.49,0.7]
[1752821826001,28.06,183.52,183.49,0.7]
[1752821826723,28.06,183.52,183.5,0.7]
[1752821826925,28.06,183.52,183.48,6.18013183]
[1752821827131,28.06,183.52,183.49,0.7]
[1752821827342,28.06,183.52,183.5,0.7]
[1752821827532,28.06,183.52,183.51,0.7]
[1752821829627,28.06,183.52,183.5,1.0]
[1752821830340,22.83051268,183.51,183.5,1.0]
[1752821832339,28.27980699,183.51,183.5,1.0]
[1752821835159,22.83051268,183.51,183.5,1.0]
[1752821835364,28.06,183.51,183.5,1.0]
[1752821835528,28.06,183.51,183.5,1.7]
[1752821835728,28.06,183.52,183.5,1.7]
[1752821835978,28.06,183.52,183.51,0.7]
[1752821836330,44.84468397,183.53,183.51,0.7]
[1752821836524,28.06,183.53,183.51,0.7]
[1752821836734,28.06,183.53,183.52,0.7]
[1752821837260,28.06,183.54,183.52,0.7]
[1752821838441,28.06,183.54,183.5,7.14952396]
[1752821838637,28.06,183.54,183.51,11.48504983]
[1752821838842,28.06,183.54,183.52,0.7]
[1752821839046,28.06,183.55,183.52,0.7]
[1752821839245,28.06,183.55,183.53,0.7]
[1752821840172,33.39582871,183.55,183.5,6.44950316]
[1752821840343,33.39582871,183.55,183.51,0.7]
[1752821840683,33.39582871,183.55,183.5,1.0]
[1752821840995,6.04582871,183.54,183.5,1.0]
[1752821841145,28.06,183.53,183.5,1.0]
[1752821841344,28.06,183.53,183.51,0.67]
[1752821842784,28.06,183.53,183.52,0.67]
[1752821843248,28.06,183.55,183.52,0.67]
[1752821843447,28.06,183.55,183.51,5.33582871]
[1752821843669,28.06,183.55,183.51,6.00582871]
[1752821843873,33.39582871,183.55,183.5,6.44954613]
[1752821844050,0.7,183.54,183.5,7.11954613]
[1752821844250,0.7,183.54,183.5,1.67]
[1752821844452,28.06,183.53,183.5,1.67]
[1752821845251,28.06,183.53,183.5,1.0]
[1752821845885,28.76,183.53,183.5,1.0]
[1752821847052,28.06,183.53,183.51,0.67]
[1752821848670,28.06,183.53,183.5,1.03]
[1752821848880,28.06,183.53,183.5,1.7]
[1752821849179,28.06,183.53,183.5,0.455]
[1752821850755,28.06,183.53,183.5,5.90456035]
[1752821850955,28.06,183.53,183.5,10.78538906]
[1752821851190,28.06,183.53,183.51,0.67]
[1752821851365,28.06,183.53,183.52,0.67]
[1752821851566,28.1,183.54,183.52,0.67]
[1752821852083,0.06,183.54,183.53,6.00582871]
[1752821854097,0.06,183.54,183.53,11.45452919]
[1752821856777,1e-08,183.54,183.53,39.49452919]
[1752821857087,1e-08,183.54,183.53,40.03939923]
[1752821858758,1e-08,183.54,183.53,39.49452919]
[1752821859159,0.06,183.57,183.56,26.0]
[1752821859387,0.06,183.57,183.56,31.33582871]
[1752821859590,0.06,183.57,183.56,32.00582871]
[1752821860167,0.06,183.57,183.56,65.49363869]
[1752821864468,1e-08,183.57,183.56,65.49363869]
[1752821866993,1e-08,183.57,183.56,65.47363869]
[1752821869310,1e-08,183.57,183.56,38.80363869]
[1752821869614,1e-08,183.57,183.56,65.47363869]
[1752821872207,1e-08,183.57,183.56,65.71779495]
[1752821873295,1e-08,183.57,183.56,65.04779495]
[1752821873707,1e-08,183.57,183.56,59.59998497]
[1752821873889,0.69000001,183.57,183.56,31.57998497]
[1752821874320,0.69000001,183.57,183.56,26.24415626]
[1752821874491,0.69000001,183.57,183.56,0.24415626]
[1752821875097,22.81051269,183.57,183.56,0.24415626]
[1752821875278,22.92219719,183.57,183.56,0.24415626]
[1752821875480,28.2580259,183.57,183.56,0.24415626]
[1752821875906,22.92219719,183.57,183.56,0.24415626]
[1752821876778,0.69000001,183.57,183.56,0.24415626]
[1752821881208,28.2580259,183.57,183.56,0.24415626]
[1752821881595,29.8049259,183.57,183.56,0.24415626]
[1752821884398,17.47468398,183.57,183.56,0.24415626]
[1752821884610,1e-08,183.57,183.56,0.24415626]
[1752821885598,0.69000001,183.57,183.56,0.24415626]
[1752821887892,1e-08,183.57,183.56,0.24415626]
[1752821894009,0.69000001,183.57,183.56,0.24415626]
[1752821894203,0.69000001,183.57,183.56,0.27415626]
[1752821895613,6.13751322,183.57,183.56,0.27415626]
[1752821897226,0.69000001,183.57,183.56,0.27415626]
[1752821898610,1e-08,183.57,183.56,0.27415626]
[1752821899015,1e-08,183.57,183.56,0.95415626]
[1752821899213,1e-08,183.57,183.56,6.40196624]
[1752821899431,1e-08,183.57,183.56,11.73779495]
[1752821900524,1e-08,183.57,183.56,39.75779495]
[1752821908152,1e-08,183.57,183.56,34.42196624]
[1752821908324,1e-08,183.57,183.56,39.75779495]
[1752821909530,1e-08,183.57,183.56,40.30257594]
[1752821909931,1e-08,183.58,183.56,40.30257594]
[1752821910136,1e-08,183.58,183.57,6.03582871]
[1752821910630,1e-08,183.58,183.57,11.48334192]
[1752821916449,1e-08,183.61,183.6,26.0]
[1752821916622,1e-08,183.61,183.6,64.67165742]
[1752821916829,1e-08,183.61,183.6,65.37165742]
[1752821917852,1e-08,183.61,183.6,70.81828051]
[1752821918326,1e-08,183.61,183.6,59.44662309]
[1752821918526,1e-08,183.61,183.6,64.7824518]
[1752821918951,1e-08,183.61,183.6,65.4824518]
[1752821919326,1e-08,183.61,183.6,37.4824518]
[1752821919637,1e-08,183.61,183.6,65.4624518]
[1752821920145,1e-08,183.61,183.6,70.9054518]
[1752821920335,1e-08,183.61,183.6,65.4624518]
[1752821921061,1e-08,183.61,183.6,37.4824518]
[1752821921231,1e-08,183.61,183.6,65.4624518]
[1752821921827,1e-08,183.61,183.6,70.79828051]
[1752821922031,1e-08,183.62,183.6,70.79828051]
[1752821922342,1e-08,183.63,183.62,5.44602984]
[1752821922647,1e-08,183.63,183.62,38.76185855]
[1752821922846,1e-08,183.63,183.62,39.46185855]
[1752821923146,0.06,183.65,183.64,26.0]
[1752821923350,0.06,183.65,183.64,59.31582871]
[1752821923531,0.06,183.65,183.64,32.03582871]
[1752821923733,0.06,183.65,183.64,60.01582871]
[1752821923944,0.06,183.65,183.64,32.03582871]
[1752821924253,0.06,183.65,183.64,65.46126543]
[1752821924957,0.72,183.65,183.64,36.78126543]
[1752821925133,0.72,183.65,183.64,53.98]
[1752821925736,0.72,183.65,183.64,27.98]
[1752821927066,0.72,183.65,183.63,27.98]
[1752821927961,1.6037,183.64,183.61,26.0]
[1752821928141,0.66,183.63,183.61,53.98]
[1752821928748,0.66,183.63,183.6,5.33582871]
[1752821928957,0.66,183.63,183.6,33.31582871]
[1752821930340,0.66,183.63,183.6,38.76244015]
[1752821930664,0.66,183.62,183.61,5.33582871]
[1752821930959,1.6037,183.64,183.61,5.33582871]
[1752821931166,0.72,183.65,183.63,5.33582871]
[1752821931366,0.06,183.65,183.63,5.33582871]
[1752821931546,0.68,183.64,183.63,5.33582871]
[1752821931950,0.68,183.64,183.62,33.31582871]
[1752821932152,0.68,183.63,183.62,33.31582871]
[1752821932466,0.68,183.63,183.62,5.33582871]
[1752821935072,0.68,183.63,183.61,27.98]
[1752821935245,0.68,183.63,183.6,33.31582871]
[1752821935847,0.68,183.62,183.61,5.33582871]
[1752821936946,0.68,183.64,183.61,10.78215516]
[1752821937143,0.68,183.63,183.6,33.42654444]
[1752821937361,0.68,183.62,183.61,5.33582871]
[1752821937763,0.68,183.62,183.6,27.98]
[1752821937965,0.68,183.61,183.6,5.33582871]
[1752821938142,0.68,183.61,183.58,10.81296718]
[1752821938359,0.68,183.6,183.59,27.98]
[1752821938557,0.68,183.6,183.59,5.33582871]
[1752821938956,0.68,183.6,183.58,33.34582871]
[1752821939165,0.68,183.6,183.59,5.33582871]
[1752821939472,0.68,183.6,183.58,0.03]
[1752821941544,6.12662566,183.6,183.58,0.03]
[1752821942064,17.46468397,183.59,183.58,0.03]
[1752821943168,22.91160373,183.59,183.58,0.03]
[1752821943374,17.46468397,183.59,183.58,0.03]
[1752821944649,1.6431,183.61,183.58,5.36582871]
[1752821944844,1.6431,183.61,183.59,5.33582871]
[1752821944845,0.68,183.61,183.59,5.33582871]
[1752821945075,11.95797881,183.62,183.59,5.33582871]
[1752821945373,0.68,183.61,183.59,5.33582871]
[1752821945670,0.68,183.6,183.58,5.36582871]
[1752821946053,0.68,183.59,183.58,5.36582871]
[1752821947070,11.95797881,183.62,183.58,5.36582871]
[1752821947269,0.68,183.61,183.58,5.36582871]
[1752821947583,0.68,183.6,183.58,5.36582871]
[1752821948571,17.40405151,183.62,183.58,5.36582871]
[1752821948877,0.68,183.59,183.58,5.36582871]
[1752821949253,0.68,183.59,183.58,0.03]
[1752821949752,17.46468397,183.59,183.58,0.03]
[1752821949948,22.91160373,183.59,183.58,0.03]
[1752821950360,28.24743244,183.59,183.58,0.03]
[1752821950552,22.91160373,183.59,183.58,0.03]
[1752821950752,28.24743244,183.59,183.58,0.03]
[1752821951171,17.46468397,183.59,183.58,0.03]
[1752821953670,17.46468397,183.61,183.58,0.03]
[1752821953862,16.78468397,183.61,183.58,0.03]
[1752821954054,0.68,183.59,183.58,0.03]
[1752821957477,17.46468397,183.61,183.58,0.03]
[1752821957848,0.68,183.6,183.58,0.03]
[1752821958470,0.68,183.59,183.58,0.03]
[1752821964168,17.45468397,183.61,183.58,0.03]
[1752821964582,0.67,183.6,183.58,0.03]
[1752821964792,11.95797881,183.62,183.59,6.02582871]
[1752821964995,11.95797881,183.62,183.61,5.33582871]
[1752821966406,11.95797881,183.62,183.61,10.78215516]
[1752821966607,11.95797881,183.62,183.61,11.47215516]
[1752821966907,0.06,183.63,183.61,39.43215516]
[1752821967084,0.06,183.63,183.62,5.33582871]
[1752821967402,0.06,183.63,183.62,0.69]
[1752821967609,0.06,183.63,183.62,6.02582871]
[1752821968004,0.06,183.63,183.62,11.47185855]
[1752821970887,0.06,183.63,183.62,39.43185855]
[1752821973229,0.06,183.63,183.62,34.09602984]
[1752821973422,0.06,183.63,183.62,39.43185855]
[1752821974932,0.06,183.63,183.62,34.09602984]
[1752821975109,0.06,183.63,183.62,39.43185855]
[1752821976031,0.06,183.63,183.62,33.29582871]
[1752821976214,0.06,183.63,183.62,38.74185855]
[1752821977224,0.06,183.63,183.62,10.78185855]
[1752821977411,0.06,183.63,183.62,38.74185855]
[1752821977619,0.06,183.63,183.62,10.78185855]
[1752821977932,0.06,183.63,183.62,38.74185855]
[1752821979528,0.06,183.63,183.62,10.78185855]
[1752821979724,0.06,183.63,183.62,38.74185855]
[1752821980106,0.06,183.63,183.62,33.40602984]
[1752821980302,0.06,183.63,183.62,38.74185855]
[1752821982330,0.06,183.63,183.62,33.40602984]
[1752821982530,0.06,183.63,183.62,38.74185855]
[1752821983037,0.06,183.63,183.62,39.43185855]
[1752821983817,0.06,183.63,183.62,39.46185855]
[1752821985324,0.06,183.63,183.62,38.77185855]
[1752821986415,0.06,183.63,183.62,39.46185855]
[1752821987314,0.06,183.63,183.62,34.12602984]
[1752821987509,0.06,183.63,183.62,39.46185855]
[1752821987829,0.73,183.63,183.62,0.03]
[1752821997032,0.06,183.63,183.62,33.95582871]
[1752821997226,0.06,183.63,183.62,28.62]
[1752821997427,0.06,183.63,183.62,33.95582871]
[1752821997738,0.66670914,183.66,183.62,33.95582871]
[1752821997934,0.66670914,183.66,183.65,5.33582871]
[1752821998133,0.06,183.67,183.64,5.33582871]
[1752821998728,0.06,183.67,183.62,34.06584944]
[1752821998930,0.06,183.67,183.64,5.33582871]
[1752821999432,0.06,183.67,183.62,34.06584944]
[1752821999621,0.69,183.66,183.64,5.33582871]
[1752822000539,0.69,183.66,183.64,10.7812124]
[1752822000746,0.06,183.67,183.65,33.92582871]
[1752822000928,0.06,183.67,183.66,5.33582871]
[1752822001133,0.06,183.67,183.66,5.98582871]
[1752822001338,0.06,183.7,183.69,26.0]
[1752822001638,0.06,183.73,183.72,26.0]
[1752822001836,0.06,183.73,183.72,59.27582871]
[1752822002035,0.1,183.82,183.75,26.0]
[1752822002245,0.1,183.82,183.75,59.27582871]
[1752822002434,0.1,183.82,183.75,59.92582871]
[1752822003543,0.1,183.82,183.75,65.36800558]
[1752822003736,1e-08,183.76,183.75,65.36800558]
[1752822004349,0.1,183.82,183.75,112.18766543]
[1752822004646,0.1,183.82,183.81,5.33582871]
[1752822004831,0.1,183.82,183.81,35.93489443]
[1752822005029,0.1,183.82,183.81,36.58489443]
[1752822005644,0.1,183.82,183.81,42.02529484]
[1752822007233,0.1,183.82,183.81,14.10529484]
[1752822007439,0.1,183.82,183.81,36.68946613]
[1752822007638,0.1,183.82,183.81,42.02529484]
[1752822007951,0.1,183.82,183.81,36.68946613]
[1752822008151,0.1,183.82,183.81,36.03946613]
[1752822008453,0.1,183.82,183.81,41.37529484]
[1752822008639,0.1,183.82,183.81,36.03946613]
[1752822008842,0.1,183.82,183.81,41.37529484]
[1752822010240,0.1,183.82,183.81,13.45529484]
[1752822010546,0.1,183.82,183.81,35.91489443]
[1752822010851,0.1,183.82,183.81,36.56489443]
[1752822011034,0.1,183.82,183.81,42.00529484]
[1752822011542,0.1,183.82,183.81,35.91489443]
[1752822011938,0.1,183.82,183.81,8.01489443]
[1752822012150,0.1,183.82,183.81,35.91489443]
[1752822012331,0.1,183.82,183.81,36.56489443]
[1752822013626,0.1,183.82,183.81,42.00529484]
[1752822013825,0.1,183.82,183.81,36.66946613]
[1752822014032,0.1,183.82,183.81,42.00529484]
[1752822016237,16.78468397,183.89,183.81,42.00529484]
[1752822016238,15.07468397,183.89,183.81,42.00529484]
[1752822016454,15.07468397,183.89,183.85,5.33582871]
[1752822016642,15.07468397,183.89,183.84,33.23582871]
[1752822016839,25.84855828,183.89,183.84,5.33582871]
[1752822017155,20.41051268,183.89,183.84,38.67530348]
[1752822017859,20.41051268,183.89,183.84,33.33949665]
[1752822018055,20.41051268,183.89,183.84,33.23582871]
[1752822018359,16.78468397,183.87,183.84,27.9]
[1752822018557,0.69,183.86,183.83,38.67557047]
[1752822019140,16.78468397,183.87,183.85,5.33582871]
[1752822019347,16.78468397,183.87,183.84,0.65]
[1752822019348,16.78468397,183.87,183.84,5.98582871]
[1752822019656,10.77358983,183.9,183.85,0.65]
[1752822019657,16.78468397,183.89,183.85,0.65]
[1752822019857,22.81051268,183.89,183.83,38.67557047]
[1752822020038,16.78468397,183.87,183.83,38.67557047]
[1752822020229,0.69,183.87,183.83,39.32557047]
[1752822021056,16.78468397,183.86,183.83,39.32557047]
[1752822021254,16.78468397,183.86,183.83,28.55]
[1752822021568,16.78468397,183.84,183.81,30.55906572]
[1752822021753,16.78468397,183.82,183.81,30.55906572]
[1752822021954,17.45468397,183.82,183.81,28.67906572]
[1752822022259,17.45468397,183.82,183.81,2.67906572]
[1752822022443,17.45468397,183.82,183.79,27.88]
[1752822022643,16.78468397,183.83,183.8,5.33582871]
[1752822022853,16.78468397,183.83,183.8,6.04582871]
[1752822023535,17.45468397,183.83,183.79,33.3208732]
[1752822023732,17.45468397,183.83,183.79,39.36670191]
[1752822024138,16.78468397,183.83,183.79,38.65670191]
[1752822024341,16.78468397,183.83,183.8,6.04582871]
[1752822024633,16.78468397,183.83,183.8,8.81745544]
[1752822025048,16.78468397,183.83,183.8,14.25814339]
[1752822025653,16.78468397,183.83,183.81,0.71]
[1752822025981,16.78468397,183.83,183.8,8.21231468]
[1752822026169,17.45468397,183.83,183.8,36.09231468]
[1752822027178,16.78468397,183.83,183.8,36.80231468]
[1752822027350,16.78468397,183.83,183.8,30.65162673]
[1752822027546,17.45468397,183.83,183.8,30.65162673]
[1752822027745,17.45468397,183.83,183.8,2.77162673]
[1752822027746,5.33582871,183.82,183.8,2.77162673]
[1752822027973,0.67,183.81,183.76,0.03]
[1752822028154,16.78468397,183.78,183.76,0.03]
[1752822028364,5.33582871,183.8,183.76,0.03]
[1752822028547,6.00582871,183.8,183.76,0.03]
[1752822028954,22.12051268,183.82,183.76,11.51767365]
[1752822029170,22.12051268,183.82,183.77,0.71]
[1752822029576,16.78468397,183.8,183.77,0.71]
[1752822030648,22.12051268,183.78,183.76,2.75773612]
[1752822030875,22.79051268,183.78,183.76,2.75773612]
[1752822031254,17.45468397,183.77,183.76,2.75773612]
[1752822031564,17.45468397,183.77,183.76,0.03]
[1752822031565,22.79051268,183.77,183.76,0.03]
[1752822031774,17.45468397,183.77,183.76,0.03]
[1752822032164,22.79051268,183.77,183.76,0.03]
[1752822033160,17.45468397,183.77,183.76,0.03]
[1752822034155,16.78468397,183.77,183.76,0.03]
[1752822036074,16.78468397,183.77,183.76,0.74]
[1752822036388,16.78468397,183.82,183.76,6.07582871]
[1752822036556,16.78468397,183.82,183.77,6.04582871]
[1752822036758,16.78468397,183.82,183.78,0.71]
[1752822036977,17.45468397,183.82,183.78,0.71]
[1752822037479,0.67,183.81,183.77,5.33582871]
[1752822037789,0.67,183.81,183.76,0.03]
[1752822037790,16.78468397,183.79,183.76,0.03]
[1752822037962,16.78468397,183.77,183.76,0.03]
[1752822039277,0.67,183.77,183.76,0.03]
[1752822039461,26.23209726,183.77,183.76,0.03]
[1752822041477,26.73209726,183.77,183.76,0.03]
[1752822042576,54.63209726,183.77,183.76,0.03]
[1752822043759,52.11901268,183.77,183.76,0.03]
[1752822044791,57.56059726,183.77,183.76,0.03]
[1752822045770,57.56059726,183.77,183.69,0.71]
[1752822045969,16.78468397,183.72,183.69,0.71]
[1752822047280,29.4985,183.77,183.68,29.94834379]
[1752822047498,5.33582871,183.74,183.7,0.71]
[1752822047701,16.78468397,183.72,183.68,25.214094]
[1752822048175,16.78468397,183.72,183.68,30.65831292]
[1752822048601,27.56359868,183.72,183.68,25.214094]
[1752822048782,28.06359868,183.72,183.68,24.504094]
[1752822048976,5.33582871,183.71,183.68,24.504094]
[1752822049276,16.78468397,183.69,183.68,24.504094]
[1752822049486,16.78468397,183.69,183.68,0.03]
[1752822049686,5.33582871,183.69,183.68,0.03]
[1752822049893,5.83582871,183.69,183.68,0.03]
[1752822050380,28.06446716,183.69,183.68,0.03]
[1752822050973,22.12051268,183.69,183.68,0.03]
[1752822051373,16.78468397,183.69,183.68,0.03]
[1752822051793,16.78468397,183.69,183.68,0.72]
[1752822052092,16.78468397,183.69,183.68,0.03]
[1752822052990,16.78468397,183.69,183.68,0.72]
[1752822053804,16.78468397,183.69,183.68,0.03]
[1752822053805,52.08461268,183.69,183.68,0.03]
[1752822053980,57.52856716,183.69,183.68,0.03]
[1752822054882,57.02856716,183.69,183.68,0.03]
[1752822055097,51.58461268,183.69,183.68,0.03]
[1752822055878,57.52856716,183.69,183.68,0.03]
[1752822057006,52.19273845,183.69,183.68,0.03]
[1752822057379,57.52856716,183.69,183.68,0.03]
[1752822058505,55.46446716,183.69,183.68,0.03]
[1752822058726,50.02051268,183.69,183.68,0.03]
[1752822059616,22.12051268,183.69,183.68,0.03]
[1752822061201,16.78468397,183.69,183.68,0.72]
[1752822061598,27.56446716,183.69,183.68,0.03]
[1752822061911,28.06446716,183.69,183.68,0.03]
[1752822064114,16.78468397,183.65,183.62,0.03]
[1752822064307,22.12051268,183.63,183.62,0.03]
[1752822064500,16.78468397,183.63,183.62,0.03]
[1752822064688,22.12051268,183.63,183.62,0.03]
[1752822065901,27.56624594,183.63,183.62,0.03]
[1752822066227,22.12051268,183.63,183.62,0.03]
[1752822068303,16.78468397,183.63,183.62,0.72]
[1752822069307,16.78468397,183.64,183.62,0.72]
[1752822069719,16.78468397,183.64,183.63,0.69]
[1752822070408,22.12051268,183.68,183.63,6.13573326]
[1752822070617,5.33582871,183.7,183.64,6.02582871]
[1752822070812,44.68468397,183.69,183.65,0.69]
[1752822071826,16.78468397,183.69,183.66,5.44484373]
[1752822072022,50.02051268,183.71,183.67,0.69]
[1752822072322,16.78468397,183.7,183.68,0.69]
[1752822072995,16.78468397,183.7,183.66,6.13484373]
[1752822072996,22.12051268,183.7,183.66,6.13484373]
[1752822073195,22.12051268,183.7,183.67,0.69]
[1752822073609,5.33582871,183.69,183.64,6.13518837]
[1752822073812,16.78468397,183.67,183.65,0.69]
[1752822074013,5.33582871,183.67,183.65,0.69]
[1752822074210,16.78468397,183.67,183.65,0.69]
[1752822074601,16.78468397,183.68,183.65,0.69]
[1752822076818,16.78468397,183.68,183.65,6.13510864]
[1752822077017,16.78468397,183.68,183.66,0.69]
[1752822077319,5.33582871,183.69,183.67,0.69]
[1752822077501,16.78468397,183.69,183.68,0.69]
[1752822078824,16.78468397,183.69,183.66,6.13463722]
[1752822079026,16.78468397,183.69,183.66,5.44463722]
[1752822079323,16.78468397,183.69,183.67,0.69]
[1752822079698,16.78468397,183.68,183.65,6.13514021]
[1752822080716,16.78468397,183.68,183.66,0.69]
[1752822082317,16.78468397,183.68,183.66,6.13478829]
[1752822083311,16.78468397,183.69,183.66,6.13478829]
[1752822084199,22.12051268,183.7,183.66,6.13478829]
[1752822084526,16.78468397,183.69,183.66,6.13478829]
[1752822084823,5.33582871,183.69,183.65,5.44508341]
[1752822084998,5.33582871,183.69,183.65,6.16508341]
[1752822085823,5.33582871,183.69,183.65,0.72]
[1752822086023,16.78468397,183.67,183.64,5.44540419]
[1752822086199,16.78468397,183.67,183.64,6.16540419]
[1752822086824,0.5,183.69,183.64,6.16540419]
[1752822087033,16.78468397,183.68,183.65,0.72]
[1752822087921,16.78468397,183.68,183.66,0.72]
[1752822088608,16.78468397,183.68,183.64,6.16540419]
[1752822088809,16.78468397,183.68,183.65,0.72]
[1752822089415,16.78468397,183.68,183.63,6.19571816]
[1752822089416,22.12051268,183.68,183.63,6.19571816]
[1752822089611,22.12051268,183.68,183.64,0.72]
[1752822089928,5.33582871,183.67,183.63,0.75]
[1752822090126,5.83582871,183.67,183.63,0.75]
[1752822090840,22.12051268,183.64,183.63,0.03]
[1752822092126,16.78468397,183.64,183.63,0.03]
[1752822092814,16.78468397,183.64,183.63,0.75]
[1752822093823,16.78468397,183.64,183.63,0.03]
[1752822094733,28.0659494,183.64,183.63,0.03]
[1752822096628,16.78468397,183.64,183.63,0.03]
[1752822096817,16.78468397,183.64,183.63,0.75]
[1752822097330,16.78468397,183.64,183.63,0.03]
[1752822097527,22.12051268,183.64,183.63,0.03]
[1752822097918,28.0659494,183.64,183.63,0.03]
[1752822098531,54.0659494,183.64,183.63,0.03]
[1752822102728,27.5659494,183.64,183.63,0.03]
[1752822102927,16.78468397,183.64,183.63,0.75]
[1752822105541,27.9,183.68,183.63,6.19573326]
[1752822105716,16.78468397,183.68,183.64,0.72]
[1752822106117,16.84468397,183.69,183.65,5.44514021]
[1752822106315,16.84468397,183.69,183.66,0.72]
[1752822106729,22.18051268,183.69,183.67,0.72]
[1752822107132,16.84468397,183.69,183.67,0.72]
[1752822111834,16.84468397,183.69,183.68,0.7]
[1752822112248,0.06,183.69,183.68,0.7]
[1752822112419,0.06,183.69,183.64,5.33582871]
[1752822112624,0.06,183.69,183.66,0.7]
[1752822113048,5.39582871,183.69,183.67,75.0]
[1752822114643,5.33582871,183.68,183.67,75.0]
[1752822115856,22.12051268,183.68,183.67,75.0]
[1752822116158,16.78468397,183.68,183.67,75.7]
[1752822117058,16.78468397,183.68,183.67,75.0]
[1752822117236,16.84468397,183.68,183.67,75.0]
[1752822117437,16.84468397,183.68,183.67,75.7]
[1752822120750,16.84468397,183.68,183.67,81.14454728]
[1752822120952,16.84468397,183.68,183.67,75.7]
[1752822122439,16.84468397,183.68,183.67,75.0]
[1752822122639,16.84468397,183.68,183.67,75.7]
[1752822123562,16.84468397,183.68,183.67,81.14454728]
[1752822123752,0.06,183.68,183.67,86.48037599]
[1752822123941,0.06,183.69,183.67,86.48037599]
[1752822124137,0.06,183.69,183.68,6.03582871]
[1752822124437,0.06,183.69,183.68,0.7]
[1752822125045,0.06,183.69,183.68,6.14425087]
[1752822125243,0.06,183.69,183.68,0.7]
[1752822125441,0.06,183.69,183.67,75.0]
[1752822125442,16.78468397,183.68,183.67,75.0]
[1752822125756,22.12051268,183.68,183.67,75.0]
[1752822126160,16.78468397,183.68,183.67,75.0]
[1752822126668,5.33582871,183.68,183.67,75.0]
[1752822127361,5.39582871,183.69,183.67,75.0]
[1752822128050,5.39582871,183.69,183.67,75.7]